fUSD/lending_fUSD_20241125
["ID","MTS","AMOUNT","RATE_DAILY","PERIOD"]
[343265172,1732536659368,-739.61,0.00039452,21]
[343265173,1732536659377,-500.0,0.00039452,21]
[343265174,1732536659387,-500.0,0.00039452,21]
[343265175,1732536659396,-3431.21,0.00039452,21]
[343265176,1732536659405,-535.48,0.00039452,21]
[343265177,1732536659416,-2326.47,0.00039452,21]
[343265178,1732536659425,-393.89,0.00039452,21]
[343265179,1732536659435,-659.22,0.00039452,21]
[343265180,1732536659445,-939.05,0.00039452,21]
[343265181,1732536659454,-576.02,0.00039452,21]
[343265182,1732536659463,-8053.63,0.00039452,21]
[343265183,1732536659474,-8604.27,0.00039452,21]
[343265184,1732536659483,-500.0,0.00039452,21]
[343265185,1732536659493,-500.0,0.00039452,21]
[343265186,1732536659502,-897.77,0.00039452,21]
[343265187,1732536659511,-500.0,0.00039452,21]
[343265188,1732536659521,-500.0,0.00039452,21]
[343265189,1732536659530,-500.0,0.00039452,21]
[343265190,1732536659539,-500.0,0.00039452,21]
[343265191,1732536659548,-500.0,0.00039452,21]
[343265192,1732536659557,-500.0,0.00039452,21]
[343265193,1732536659566,-500.0,0.00039452,21]
[343265194,1732536659576,-500.0,0.00039452,21]
[343265195,1732536659585,-747.44,0.00039452,21]
[343265196,1732536659594,-1247.78,0.00039452,21]
[343265197,1732536659610,-726.59,0.00039452,21]
[343265198,1732536659622,-1129.77,0.00039452,21]
[343265199,1732536659632,-963.68,0.00039452,21]
[343265200,1732536659642,-500.0,0.00039452,21]
[343265201,1732536659652,-500.0,0.00039452,21]
[343265202,1732536659663,-3123.05,0.00039452,21]
[343265203,1732536659673,-500.0,0.00039452,21]
[343265204,1732536659684,-500.0,0.00039452,21]
[343265205,1732536659695,-547.96,0.00039452,21]
[343265206,1732536659706,-500.0,0.00039452,21]
[343265207,1732536659716,-727.18,0.00039452,21]
[343265208,1732536659725,-8008.7,0.00039452,21]
[343265209,1732536659735,-500.0,0.00039452,21]
[343265210,1732536659746,-500.0,0.00039452,21]
[343265211,1732536659756,-913.31,0.00039452,21]
[343265212,1732536659766,-500.0,0.00039452,21]
[343265213,1732536659775,-500.0,0.00039452,21]
[343265214,1732536659785,-500.0,0.00039452,21]
[343265215,1732536659796,-1042.25,0.00039452,21]
[343265216,1732536659805,-1103.1,0.00039452,21]
[343265217,1732536659815,-500.0,0.00039452,21]
[343265218,1732536659824,-500.0,0.00039452,21]
[343265219,1732536659834,-500.0,0.00039452,21]
[343265220,1732536659843,-525.44,0.00039452,21]
[343265221,1732536659852,-500.0,0.00039452,21]
[343265222,1732536659862,-714.29,0.00039452,21]
[343265223,1732536659871,-1098.83,0.00039452,21]
[343265224,1732536659881,-599.99,0.00039452,21]
[343265225,1732536659890,-500.0,0.00039452,21]
[343265226,1732536659900,-536.64,0.00039452,21]
[343265227,1732536659910,-500.0,0.00039452,21]
[343265228,1732536659919,-500.0,0.00039452,21]
[343265229,1732536659928,-500.0,0.00039452,21]
[343265230,1732536659937,-3141.32,0.00039452,21]
[343265231,1732536659946,-500.0,0.00039452,21]
[343265232,1732536659955,-500.0,0.00039452,21]
[343265233,1732536659965,-1749.61,0.00039452,21]
[343265234,1732536659974,-520.31,0.00039452,21]
[343265235,1732536659983,-3086.47,0.00039452,21]
[343265236,1732536659993,-999.78,0.00039452,21]
[343265237,1732536660002,-500.0,0.00039452,21]
[343265238,1732536660012,-516.76,0.00039452,21]
[343265239,1732536660022,-599.84,0.00039452,21]
[343265240,1732536660032,-500.0,0.00039452,21]
[343265241,1732536660042,-500.0,0.00039452,21]
[343265242,1732536660053,-843.37,0.00039452,21]
[343265243,1732536660062,-897.11,0.00039452,21]
[343265244,1732536660072,-500.0,0.00039452,21]
[343265245,1732536660082,-1516.6,0.00039452,21]
[343265246,1732536660092,-4321.07,0.00039452,21]
[343265247,1732536660110,-500.0,0.00039452,21]
[343265248,1732536660120,-1501.72,0.00039452,21]
[343265249,1732536660133,-500.0,0.00039452,21]
[343265250,1732536660144,-3276.7,0.00039452,21]
[343265251,1732536660154,-21441.79,0.00039452,21]
[343265252,1732536660163,-500.0,0.00039452,21]
[343265253,1732536660174,-500.0,0.00039452,21]
[343265254,1732536660183,-2334.22,0.00039452,21]
[343265255,1732536660194,-500.0,0.00039452,21]
[343265256,1732536660203,-1941.42,0.00039452,21]
[343265257,1732536660215,-500.0,0.00039452,21]
[343265258,1732536660225,-500.0,0.00039452,21]
[343265259,1732536660236,-492.92113633,0.00039452,21]
[343265260,1732536660246,-530.0,0.00039452,21]
[343265261,1732536660256,-500.0,0.00039452,21]
[343265262,1732536660267,-500.0,0.00039452,21]
[343265263,1732536660276,-500.0,0.00039452,21]
[343265264,1732536660286,-1034.74,0.00039452,21]
[343265265,1732536660297,-548.14,0.00039452,21]
[343265266,1732536660307,-500.0,0.00039452,21]
[343265267,1732536660317,-1055.46,0.00039452,21]
[343265268,1732536660327,-151.0,0.00039452,120]
[343265269,1732536660336,-685.17,0.00039474,2]
[343265270,1732536660346,-574.77,0.00039492,21]
[343265271,1732536660360,-500.0,0.00039493,21]
[343265272,1732536660369,-500.0,0.00039493,21]
[343265273,1732536660379,-500.0,0.00039493,21]
[343265274,1732536660388,-500.0,0.00039493,21]
[343265275,1732536660397,-251.72,0.00039493,21]
[343265276,1732536660409,-500.0,0.00039493,21]
[343265277,1732536660419,-500.0,0.00039493,21]
[343265278,1732536660428,-500.0,0.00039493,21]
[343265279,1732536660437,-500.0,0.00039493,21]
[343265280,1732536660446,-500.0,0.00039493,21]
[343265281,1732536660457,-500.0,0.00039493,21]
[343265282,1732536660466,-500.0,0.00039493,21]
[343265283,1732536660475,-153.02,0.00039493,21]
[343265284,1732536660485,-500.0,0.00039493,21]
[343265285,1732536660494,-329.53,0.00039493,21]
[343265286,1732536660505,-500.0,0.00039493,21]
[343265287,1732536660514,-500.0,0.00039493,21]
[343265288,1732536660524,-638.32,0.00039493,21]
[343265289,1732536660538,-500.0,0.00039493,21]
[343265290,1732536660548,-500.0,0.00039493,21]
[343265291,1732536660558,-500.0,0.00039493,21]
[343265292,1732536660568,-500.0,0.00039493,21]
[343265293,1732536660578,-500.0,0.00039493,21]
[343265294,1732536660588,-500.0,0.00039493,21]
[343265295,1732536660598,-500.0,0.00039493,21]
[343265296,1732536660611,-500.0,0.00039493,21]
[343265297,1732536660620,-771.52,0.00039493,21]
[343265298,1732536660629,-500.0,0.00039493,21]
[343265299,1732536660640,-500.0,0.00039493,21]
[343265300,1732536660649,-500.0,0.00039493,21]
[343265301,1732536660659,-500.0,0.00039493,21]
[343265302,1732536660669,-500.0,0.00039493,21]
[343265303,1732536660678,-500.0,0.00039493,21]
[343265304,1732536660687,-500.0,0.00039493,21]
[343265305,1732536660698,-500.0,0.00039493,21]
[343265306,1732536660707,-500.0,0.00039493,21]
[343265307,1732536660717,-500.0,0.00039493,21]
[343265308,1732536660727,-500.0,0.00039493,21]
[343265309,1732536660736,-500.0,0.00039493,21]
[343265310,1732536660746,-500.0,0.00039493,21]
[343265311,1732536660755,-522.95,0.00039493,21]
[343265312,1732536660766,-500.0,0.00039493,21]
[343265313,1732536660775,-658.45,0.00039493,21]
[343265314,1732536660784,-1976.25,0.00039493,21]
[343265315,1732536660794,-500.0,0.00039493,21]
[343265316,1732536660803,-500.0,0.00039493,21]
[343265317,1732536660813,-500.0,0.00039493,21]
[343265318,1732536660823,-500.0,0.00039493,21]
[343265319,1732536660832,-500.0,0.00039493,21]
[343265320,1732536660841,-876.13,0.00039493,21]
[343265321,1732536660851,-500.0,0.00039493,21]
[343265322,1732536660866,-500.0,0.00039493,21]
[343265323,1732536660875,-368.42,0.00039493,21]
[343265324,1732536660885,-514.52,0.00039493,21]
[343265325,1732536660894,-500.0,0.00039493,21]
[343265326,1732536660905,-500.0,0.00039493,21]
[343265327,1732536660914,-379.95064692,0.00039493,21]
[343265328,1732536660925,-500.0,0.00039493,21]
[343265329,1732536660935,-500.0,0.00039493,21]
[343265330,1732536660944,-500.0,0.00039493,21]
[343265331,1732536660954,-500.0,0.00039493,21]
[343265332,1732536660963,-500.0,0.00039493,21]
[343265333,1732536660973,-500.0,0.00039493,21]
[343265334,1732536660982,-500.0,0.00039493,21]
[343265335,1732536660992,-500.0,0.00039493,21]
[343265336,1732536661002,-500.0,0.00039493,21]
[343265337,1732536661012,-7241.01,0.00039493,21]
[343265338,1732536661022,-1484.3,0.00039493,21]
[343265339,1732536661032,-500.0,0.00039493,21]
[343265340,1732536661042,-500.0,0.00039493,21]
[343265341,1732536661052,-656.71,0.00039493,21]
[343265342,1732536661061,-500.0,0.00039493,21]
[343265343,1732536661070,-1219.29,0.00039493,21]
[343265344,1732536661080,-500.0,0.00039493,21]
[343265345,1732536661089,-1044.42,0.00039493,21]
[343265346,1732536661106,-500.0,0.00039493,21]
[343265347,1732536661116,-5313.62,0.00039493,21]
[343265348,1732536661126,-500.0,0.00039493,21]
[343265349,1732536661135,-635.51,0.00039493,21]
[343265350,1732536661144,-1329.57,0.00039493,21]
[343265351,1732536661155,-500.0,0.00039493,21]
[343265352,1732536661165,-500.0,0.00039493,21]
[343265353,1732536661176,-3316.78,0.00039493,21]
[343265354,1732536661186,-500.0,0.00039493,21]
[343265355,1732536661196,-500.0,0.00039493,21]
[343265356,1732536661205,-500.0,0.00039493,21]
[343265357,1732536661215,-500.0,0.00039493,21]
[343265358,1732536661225,-500.0,0.00039493,21]
[343265359,1732536661235,-913.11,0.00039493,21]
[343265360,1732536661245,-528.36,0.00039493,21]
[343265361,1732536661254,-1044.85,0.00039493,21]
[343265362,1732536661264,-500.0,0.00039493,21]
[343265363,1732536661273,-500.0,0.00039493,21]
[343265364,1732536661283,-500.0,0.00039493,21]
[343265365,1732536661294,-500.0,0.00039493,21]
[343265366,1732536661304,-622.43,0.00039493,21]
[343265367,1732536661314,-500.0,0.00039493,21]
[343265368,1732536661324,-1961.52,0.00039493,21]
[343265369,1732536661333,-500.0,0.00039493,21]
[343265370,1732536661343,-500.0,0.00039493,21]
[343265371,1732536661355,-500.0,0.00039493,21]
[343265372,1732536661366,-1014.5,0.00039493,21]
[343265373,1732536661376,-1204.64,0.00039493,21]
[343265374,1732536661385,-1000.0,0.00039493,21]
[343265375,1732536661395,-500.0,0.00039493,21]
[343265376,1732536661406,-500.0,0.00039493,21]
[343265377,1732536661415,-500.0,0.00039493,21]
[343265378,1732536661425,-500.0,0.00039493,21]
[343265379,1732536661436,-326.38,0.00039493,21]
[343265380,1732536661446,-500.0,0.00039493,21]
[343265381,1732536661456,-2806.06,0.00039493,21]
[343265382,1732536661466,-500.0,0.00039493,21]
[343265383,1732536661476,-713.37,0.00039493,21]
[343265384,1732536661485,-339.59,0.00039493,21]
[343265385,1732536661495,-2152.31,0.00039493,21]
[343265386,1732536661505,-500.0,0.00039493,21]
[343265387,1732536661515,-229.1,0.00039493,21]
[343265388,1732536661524,-603.93,0.00039493,21]
[343265389,1732536661586,-2862.22,0.00039493,21]
[343265390,1732536661596,-500.0,0.00039493,21]
[343265391,1732536661608,-500.0,0.00039493,21]
[343265392,1732536661617,-500.0,0.00039493,21]
[343265393,1732536661627,-500.0,0.00039493,21]
[343265394,1732536661637,-500.0,0.00039493,21]
[343265395,1732536661647,-818.24,0.00039493,21]
[343265396,1732536661657,-594.32,0.00039493,21]
[343265397,1732536661667,-500.0,0.00039493,21]
[343265398,1732536661676,-5698.56,0.00039493,21]
[343265399,1732536661685,-2231.16,0.00039493,21]
[343265400,1732536661694,-500.0,0.00039493,21]
[343265401,1732536661704,-500.0,0.00039493,21]
[343265402,1732536661714,-3033.86,0.00039493,21]
[343265403,1732536661723,-500.0,0.00039493,21]
[343265404,1732536661732,-500.0,0.00039493,21]
[343265405,1732536661741,-394.44499,0.0003957,2]
[343265406,1732536661751,-500.0,0.00039725,21]
[343265407,1732536661766,-500.0,0.00039725,21]
[343265408,1732536661776,-500.0,0.00039725,21]
[343265409,1732536661785,-500.0,0.00039725,21]
[343265410,1732536661797,-500.0,0.00039725,21]
[343265411,1732536661806,-398.83,0.00039725,21]
[343265412,1732536661817,-500.0,0.00039725,21]
[343265413,1732536661827,-500.0,0.00039725,21]
[343265414,1732536661837,-500.0,0.00039725,21]
[343265415,1732536661847,-596.54,0.00039725,21]
[343265416,1732536661859,-498.45,0.00039725,21]
[343265417,1732536661869,-250.96,0.00039725,21]
[343265418,1732536661878,-500.0,0.00039725,21]
[343265419,1732536661891,-500.0,0.00039725,21]
[343265420,1732536661902,-500.0,0.00039725,21]
[343265421,1732536661912,-615.05,0.00039725,21]
[343265422,1732536661922,-500.0,0.00039725,21]
[343265423,1732536661932,-500.0,0.00039725,21]
[343265424,1732536661942,-2082.25,0.00039725,21]
[343265425,1732536661952,-500.0,0.00039725,21]
[343265426,1732536661961,-500.0,0.00039725,21]
[343265427,1732536661971,-500.0,0.00039725,21]
[343265428,1732536661980,-500.0,0.00039725,21]
[343265429,1732536661989,-500.0,0.00039725,21]
[343265430,1732536661998,-500.0,0.00039725,21]
[343265431,1732536662007,-500.0,0.00039725,21]
[343265432,1732536662018,-500.0,0.00039725,21]
[343265433,1732536662028,-500.0,0.00039725,21]
[343265434,1732536662038,-500.0,0.00039725,21]
[343265435,1732536662048,-500.0,0.00039725,21]
[343265436,1732536662058,-500.0,0.00039725,21]
[343265437,1732536662067,-500.0,0.00039725,21]
[343265438,1732536662078,-648.22,0.00039725,21]
[343265439,1732536662088,-500.0,0.00039725,21]
[343265440,1732536662102,-500.0,0.00039725,21]
[343265441,1732536662113,-253.44857943,0.00039725,21]
[343265442,1732536662123,-500.0,0.00039725,21]
[343265443,1732536662133,-500.0,0.00039725,21]
[343265444,1732536662146,-500.0,0.00039725,21]
[343265445,1732536662156,-500.0,0.00039725,21]
[343265446,1732536662166,-500.0,0.00039725,21]
[343265447,1732536662179,-1204.4,0.00039725,21]
[343265448,1732536662190,-500.0,0.00039725,21]
[343265449,1732536662200,-500.0,0.00039725,21]
[343265450,1732536662210,-500.0,0.00039725,21]
[343265451,1732536662219,-500.0,0.00039725,21]
[343265452,1732536662229,-500.0,0.00039725,21]
[343265453,1732536662239,-500.0,0.00039725,21]
[343265454,1732536662249,-500.0,0.00039725,21]
[343265455,1732536662259,-500.0,0.00039725,21]
[343265456,1732536662269,-500.0,0.00039725,21]
[343265457,1732536662279,-500.0,0.00039725,21]
[343265458,1732536662288,-500.0,0.00039725,21]
[343265459,1732536662298,-500.0,0.00039725,21]
[343265460,1732536662307,-500.0,0.00039725,21]
[343265461,1732536662317,-500.0,0.00039725,21]
[343265462,1732536662328,-305.95,0.00039725,21]
[343265463,1732536662337,-500.0,0.00039725,21]
[343265464,1732536662347,-599.45157142,0.00039725,21]
[343265465,1732536662359,-500.0,0.00039725,21]
[343265466,1732536662368,-634.92,0.00039725,21]
[343265467,1732536662378,-500.0,0.00039725,21]
[343265468,1732536662387,-500.0,0.00039725,21]
[343265469,1732536662397,-500.0,0.00039725,7]
[343265470,1732536662407,-500.0,0.00039725,21]
[343265471,1732536662416,-500.0,0.00039725,21]
[343265472,1732536662426,-500.0,0.00039725,21]
[343265473,1732536662435,-500.0,0.00039725,21]
[343265474,1732536662445,-500.0,0.00039725,21]
[343265475,1732536662454,-817.33,0.00039725,21]
[343265476,1732536662464,-500.0,0.00039725,21]
[343265477,1732536662474,-674.77,0.00039725,2]
[343265478,1732536662483,-5549.98,0.00039725,21]
[343265479,1732536662493,-261.50663329,0.00039725,21]
[343265480,1732536662502,-500.0,0.00039725,21]
[343265481,1732536662511,-500.0,0.00039725,21]
[343265482,1732536662521,-500.0,0.00039725,21]
[343265483,1732536662530,-500.0,0.00039725,21]
[343265484,1732536662539,-574.77,0.00039725,21]
[343265485,1732536662548,-500.0,0.00039725,21]
[343265486,1732536662557,-500.0,0.00039725,21]
[343265487,1732536662566,-685.58,0.00039725,21]
[343265488,1732536662575,-500.0,0.00039725,21]
[343265489,1732536662584,-500.0,0.00039725,21]
[343265490,1732536662593,-500.0,0.00039725,21]
[343265491,1732536662602,-500.0,0.00039725,21]
[343265492,1732536662613,-500.0,0.00039725,21]
[343265493,1732536662622,-564.08,0.00039725,21]
[343265494,1732536662629,-702.08,0.00039725,21]
[343265495,1732536662637,-500.0,0.00039725,21]
[343265496,1732536662646,-500.0,0.00039725,21]
[343265497,1732536662655,-500.0,0.00039725,21]
[343265498,1732536662663,-500.0,0.00039725,21]
[343265499,1732536662672,-500.0,0.00039725,21]
[343265500,1732536662682,-500.0,0.00039725,21]
[343265501,1732536662692,-2182.69,0.00039725,21]
[343265502,1732536662702,-500.0,0.00039725,21]
[343265503,1732536662712,-195.46,0.00039725,21]
[343265504,1732536662722,-500.0,0.00039725,21]
[343265505,1732536662731,-500.0,0.00039725,21]
[343265506,1732536662740,-500.0,0.00039726,21]
[343265507,1732536662750,-500.0,0.00039726,21]
[343265508,1732536662760,-500.0,0.00039726,21]
[343265509,1732536662770,-500.0,0.00039726,21]
[343265510,1732536662779,-448.01,0.00039726,21]
[343265511,1732536662788,-500.0,0.00039726,21]
[343265512,1732536662798,-212.27,0.00039726,21]
[343265513,1732536662807,-344.98,0.00039726,21]
[343265514,1732536662817,-500.0,0.00039726,21]
[343265515,1732536662827,-500.0,0.00039726,21]
[343265516,1732536662836,-500.0,0.00039726,21]
[343265517,1732536662845,-558.23,0.00039726,21]
[343265518,1732536662858,-500.0,0.00039726,21]
[343265519,1732536662867,-500.0,0.00039726,21]
[343265520,1732536662876,-500.0,0.00039726,21]
[343265521,1732536662886,-675.2,0.00039726,21]
[343265522,1732536662895,-500.0,0.00039726,21]
[343265523,1732536662903,-1143.4,0.00039726,21]
[343265524,1732536662912,-553.02,0.00039726,21]
[343265525,1732536662921,-500.0,0.00039726,21]
[343265526,1732536662931,-500.0,0.00039726,21]
[343265527,1732536662940,-660.04,0.00039726,21]
[343265528,1732536662949,-500.0,0.00039726,21]
[343265529,1732536662958,-500.0,0.00039726,21]
[343265530,1732536662967,-500.0,0.00039726,21]
[343265531,1732536662977,-550.37,0.00039726,21]
[343265532,1732536662986,-500.0,0.00039726,120]
[343265533,1732536662995,-500.0,0.00039726,21]
[343265534,1732536663005,-915.74,0.00039726,21]
[343265535,1732536663016,-500.0,0.00039726,21]
[343265536,1732536663025,-529.4,0.00039726,21]
[343265537,1732536663036,-500.0,0.00039726,21]
[343265538,1732536663047,-406.98,0.00039726,21]
[343265539,1732536663064,-500.0,0.00039726,21]
[343265540,1732536663074,-500.0,0.00039726,21]
[343265541,1732536663084,-213.46,0.00039726,21]
[343265542,1732536663094,-445.91,0.00039726,21]
[343265543,1732536663111,-661.32,0.00039726,21]
[343265544,1732536663121,-592.89,0.00039726,21]
[343265545,1732536663132,-500.0,0.00039726,21]
[343265546,1732536663143,-500.0,0.00039726,21]
[343265547,1732536663154,-645.93,0.00039726,21]
[343265548,1732536663164,-500.0,0.00039726,21]
[343265549,1732536663176,-500.0,0.00039726,21]
[343265550,1732536663187,-501.9,0.00039726,21]
[343265551,1732536663197,-500.0,0.00039726,21]
[343265552,1732536663207,-500.0,0.00039726,21]
[343265553,1732536663217,-538.65,0.00039726,21]
[343265554,1732536663228,-890.91,0.00039726,21]
[343265555,1732536663238,-211.15,0.00039726,21]
[343265556,1732536663249,-500.0,0.00039726,21]
[343265557,1732536663260,-500.0,0.00039726,21]
[343265558,1732536663270,-576.21,0.00039726,21]
[343265559,1732536663281,-471.96,0.00039726,21]
[343265560,1732536663290,-463.45,0.00039726,21]
[343265561,1732536663302,-500.0,0.00039726,21]
[343265562,1732536663312,-500.0,0.00039726,21]
[343265563,1732536663322,-500.0,0.00039726,21]
[343265564,1732536663331,-500.0,0.00039726,21]
[343265565,1732536663342,-300.91168788,0.00039726,21]
[343265566,1732536663352,-500.0,0.00039726,21]
[343265567,1732536663364,-500.0,0.00039726,21]
[343265568,1732536663375,-500.0,0.00039726,21]
[343265569,1732536663384,-508.97,0.00039726,21]
[343265570,1732536663394,-903.22,0.00039726,21]
[343265571,1732536663405,-500.0,0.00039726,21]
[343265572,1732536663415,-500.0,0.00039726,21]
[343265573,1732536663425,-500.0,0.00039726,21]
[343265574,1732536663434,-500.0,0.00039726,21]
[343265575,1732536663444,-500.0,0.00039726,21]
[343265576,1732536663454,-500.0,0.00039726,21]
[343265577,1732536663464,-500.0,0.00039726,21]
[343265578,1732536663475,-783.23,0.00039726,21]
[343265579,1732536663485,-500.0,0.00039726,21]
[343265580,1732536663496,-500.0,0.00039726,21]
[343265581,1732536663506,-500.0,0.00039726,21]
[343265582,1732536663516,-500.0,0.00039726,21]
[343265583,1732536663526,-500.0,0.00039726,21]
[343265584,1732536663536,-500.0,0.00039726,21]
[343265585,1732536663546,-334.53,0.00039726,21]
[343265586,1732536663556,-500.0,0.00039726,21]
[343265587,1732536663567,-1024.03,0.00039726,21]
[343265588,1732536663577,-500.0,0.00039726,21]
[343265589,1732536663589,-332.92,0.00039726,21]
[343265590,1732536663598,-500.0,0.00039726,21]
[343265591,1732536663611,-500.0,0.00039726,21]
[343265592,1732536663622,-543.61,0.00039726,21]
[343265593,1732536663632,-500.0,0.00039726,21]
[343265594,1732536663642,-500.0,0.00039726,21]
[343265595,1732536663653,-500.0,0.00039726,21]
[343265596,1732536663663,-2874.42,0.00039726,21]
[343265597,1732536663674,-775.26,0.00039726,21]
[343265598,1732536663685,-500.0,0.00039726,21]
[343265599,1732536663696,-552.41,0.00039726,21]
[343265600,1732536663706,-157.68,0.00039726,21]
[343265601,1732536663716,-500.0,0.00039726,21]
[343265602,1732536663727,-3082.64,0.00039726,21]
[343265603,1732536663737,-500.0,0.00039726,21]
[343265604,1732536663748,-272.67,0.00039726,21]
[343265605,1732536663759,-500.0,0.00039726,21]
[343265606,1732536663770,-689.26,0.00039726,21]
[343265607,1732536663781,-739.61,0.00039726,21]
[343265608,1732536663793,-500.0,0.00039726,21]
[343265609,1732536663803,-500.0,0.00039726,21]
[343265610,1732536663814,-3431.21,0.00039726,21]
[343265611,1732536663824,-535.48,0.00039726,21]
[343265612,1732536663837,-2326.47,0.00039726,21]
[343265613,1732536663847,-939.05,0.00039726,21]
[343265614,1732536663861,-576.02,0.00039726,21]
[343265615,1732536663873,-8053.63,0.00039726,21]
[343265616,1732536663883,-8604.27,0.00039726,21]
[343265617,1732536663894,-659.22,0.00039726,21]
[343265618,1732536663904,-500.0,0.00039726,21]
[343265619,1732536663915,-500.0,0.00039726,21]
[343265620,1732536663926,-897.77,0.00039726,21]
[343265621,1732536663936,-500.0,0.00039726,21]
[343265622,1732536663947,-500.0,0.00039726,21]
[343265623,1732536663958,-500.0,0.00039726,21]
[343265624,1732536663968,-500.0,0.00039726,21]
[343265625,1732536663979,-500.0,0.00039726,21]
[343265626,1732536663989,-500.0,0.00039726,21]
[343265627,1732536664001,-500.0,0.00039726,21]
[343265628,1732536664010,-500.0,0.00039726,21]
[343265629,1732536664021,-747.44,0.00039726,21]
[343265630,1732536664032,-1247.78,0.00039726,21]
[343265631,1732536664043,-726.59,0.00039726,21]
[343265632,1732536664054,-1129.77,0.00039726,21]
[343265633,1732536664066,-963.68,0.00039726,21]
[343265634,1732536664077,-500.0,0.00039726,21]
[343265635,1732536664088,-500.0,0.00039726,21]
[343265636,1732536664107,-3123.05,0.00039726,21]
[343265637,1732536664120,-500.0,0.00039726,21]
[343265638,1732536664132,-500.0,0.00039726,21]
[343265639,1732536664143,-547.96,0.00039726,21]
[343265640,1732536664154,-500.0,0.00039726,21]
[343265641,1732536664164,-727.18,0.00039726,21]
[343265642,1732536664175,-8008.7,0.00039726,21]
[343265643,1732536664185,-500.0,0.00039726,21]
[343265644,1732536664197,-500.0,0.00039726,21]
[343265645,1732536664209,-913.31,0.00039726,21]
[343265646,1732536664219,-213.38,0.00039726,21]
[343265647,1732536664231,-500.0,0.00039726,21]
[343265648,1732536664242,-372.49067545,0.00039726,21]
[343265649,1732536664253,-1042.25,0.00039726,21]
[343265650,1732536664264,-1103.1,0.00039726,21]
[343265651,1732536664276,-500.0,0.00039726,21]
[343265652,1732536664286,-500.0,0.00039726,21]
[343265653,1732536664297,-500.0,0.00039726,21]
[343265654,1732536664307,-525.44,0.00039726,21]
[343265655,1732536664318,-500.0,0.00039726,21]
[343265656,1732536664329,-714.29,0.00039726,21]
[343265657,1732536664339,-1098.83,0.00039726,21]
[343265658,1732536664349,-599.99,0.00039726,21]
[343265659,1732536664361,-500.0,0.00039726,21]
[343265660,1732536664371,-536.64,0.00039726,21]
[343265661,1732536664382,-330.44,0.00039726,21]
[343265662,1732536664392,-500.0,0.00039726,21]
[343265663,1732536664403,-500.0,0.00039726,21]
[343265664,1732536664414,-3141.32,0.00039726,21]
[343265665,1732536664424,-500.0,0.00039726,21]
[343265666,1732536664434,-500.0,0.00039726,21]
[343265667,1732536664444,-1749.61,0.00039726,21]
[343265668,1732536664455,-520.31,0.00039726,21]
[343265669,1732536664466,-3086.47,0.00039726,21]
[343265670,1732536664476,-999.78,0.00039726,21]
[343265671,1732536664487,-500.0,0.00039726,21]